fUST/lending_fUST_20240924
["ID","MTS","AMOUNT","RATE_DAILY","PERIOD"]
[339013095,1727123445165,-500.0,0.00032876,30]
[339013096,1727123445175,-151.0,0.00032876,7]
[339013097,1727123445184,-500.0,0.00032876,30]
[339013098,1727123445194,-500.0,0.00032876,30]
[339013099,1727123445203,-500.0,0.00032876,30]
[339013100,1727123445213,-500.0,0.00032876,30]
[339013101,1727123445223,-151.0,0.00032876,7]
[339013102,1727123445232,-191.905466,0.00032876,7]
[339013103,1727123445241,-151.0,0.00032876,7]
[339013104,1727123445251,-500.0,0.00032876,30]
[339013105,1727123445260,-500.0,0.00032876,30]
[339013106,1727123445269,-500.0,0.00032876,30]
[339013107,1727123445279,-500.0,0.00032876,30]
[339013108,1727123445288,-151.0,0.00032876,7]
[339013109,1727123445299,-151.0,0.00032876,7]
[339013110,1727123445308,-500.0,0.00032876,30]
[339013111,1727123445317,-500.0,0.00032876,30]
[339013112,1727123445328,-181.107068,0.00032876,7]
[339013113,1727123445337,-181.107068,0.00032876,7]
[339013114,1727123445346,-366.97709976,0.00032876,30]
[339013115,1727123445356,-181.107068,0.00032876,7]
[339013116,1727123445365,-181.107068,0.00032876,7]
[339013117,1727123445374,-500.0,0.00032876,30]
[339013118,1727123445384,-983.83,0.00032876,30]
[339013119,1727123445394,-538.38,0.00032876,30]
[339013120,1727123445403,-278.019856,0.00032876,7]
[339013121,1727123445412,-278.019856,0.00032876,7]
[339013122,1727123445422,-500.0,0.00032876,30]
[339013123,1727123445431,-502.26009317,0.00032876,30]
[339013124,1727123445440,-278.019856,0.00032876,7]
[339013125,1727123445449,-278.019856,0.00032876,7]
[339013126,1727123445459,-500.0,0.00032876,30]
[339013127,1727123445468,-500.0,0.00032876,30]
[339013128,1727123445478,-500.0,0.00032876,30]
[339013129,1727123445487,-500.0,0.00032876,30]
[339013130,1727123445497,-277.43,0.00032876,30]
[339013131,1727123445507,-151.0,0.00032876,7]
[339013132,1727123445516,-292.169467,0.00032876,7]
[339013133,1727123445526,-1623.471586,0.00032876,7]
[339013134,1727123445535,-1623.471586,0.00032876,7]
[339013135,1727123445545,-500.0,0.00032876,30]
[339013136,1727123445555,-500.0,0.00032876,30]
[339013137,1727123445565,-1623.471586,0.00032876,7]
[339013138,1727123445574,-1623.471586,0.00032876,7]
[339013139,1727123445584,-500.0,0.00032876,30]
[339013140,1727123445593,-500.0,0.00032876,30]
[339013141,1727123445602,-500.0,0.00032876,30]
[339013142,1727123445613,-500.0,0.00032876,30]
[339013143,1727123445622,-500.0,0.00032876,30]
[339013144,1727123445631,-500.0,0.00032876,30]
[339013145,1727123445641,-500.0,0.00032876,30]
[339013146,1727123445650,-500.0,0.00032876,30]
[339013147,1727123445660,-151.0,0.00032876,7]
[339013148,1727123445669,-151.0,0.00032876,7]
[339013149,1727123445679,-974.59,0.00032876,30]
[339013150,1727123445688,-151.0,0.00032876,7]
[339013151,1727123445698,-151.0,0.00032876,7]
[339013152,1727123445707,-151.0,0.00032876,7]
[339013153,1727123445717,-151.0,0.00032876,7]
[339013154,1727123445726,-500.0,0.00032876,30]
[339013155,1727123445739,-151.0,0.00032876,7]
[339013156,1727123445748,-151.0,0.00032876,7]
[339013157,1727123445758,-500.0,0.00032876,30]
[339013158,1727123445767,-502.29068794,0.00032876,30]
[339013159,1727123445777,-500.0,0.00032876,30]
[339013160,1727123445787,-500.0,0.00032876,30]
[339013161,1727123445796,-162.644095,0.00032876,7]
[339013162,1727123445807,-500.0,0.00032876,30]
[339013163,1727123445817,-1172.3,0.00032876,30]
[339013164,1727123445826,-500.0,0.00032876,30]
[339013165,1727123445835,-500.0,0.00032876,30]
[339013166,1727123445845,-1179.99,0.00032876,30]
[339013167,1727123445855,-500.0,0.00032876,30]
[339013169,1727123445863,-500.0,0.00032876,30]
[339013170,1727123445872,-500.0,0.00032876,30]
[339013171,1727123445882,-500.0,0.00032876,30]
[339013172,1727123445891,-151.0,0.00032876,7]
[339013173,1727123445901,-151.0,0.00032876,7]
[339013174,1727123445910,-500.0,0.00032876,30]
[339013175,1727123445919,-500.0,0.00032876,30]
[339013176,1727123445928,-500.0,0.00032876,30]
[339013177,1727123445938,-500.0,0.00032876,30]
[339013178,1727123445948,-500.0,0.00032876,30]
[339013179,1727123445958,-439.834115,0.00032876,7]
[339013180,1727123445967,-439.834115,0.00032876,7]
[339013181,1727123445976,-500.0,0.00032876,30]
[339013182,1727123445986,-500.0,0.00032876,30]
[339013183,1727123445995,-500.0,0.00032876,30]
[339013184,1727123446004,-439.834115,0.00032876,7]
[339013185,1727123446014,-439.834115,0.00032876,7]
[339013186,1727123446024,-500.0,0.00032876,30]
[339013187,1727123446033,-500.0,0.00032876,30]
[339013188,1727123446043,-500.0,0.00032876,30]
[339013189,1727123446052,-500.0,0.00032876,30]
[339013190,1727123446061,-1648.819409,0.00032876,7]
[339013191,1727123446070,-1648.819409,0.00032876,7]
[339013192,1727123446079,-500.0,0.00032876,30]
[339013193,1727123446089,-500.0,0.00032876,30]
[339013194,1727123446098,-1648.819409,0.00032876,7]
[339013195,1727123446107,-830.09,0.00032876,30]
[339013196,1727123446117,-1648.819409,0.00032876,7]
[339013197,1727123446126,-500.0,0.00032876,30]
[339013198,1727123446135,-500.0,0.00032876,30]
[339013199,1727123446145,-500.0,0.00032876,30]
[339013200,1727123446154,-500.0,0.00032876,30]
[339013201,1727123446163,-500.0,0.00032876,30]
[339013202,1727123446172,-503.3653671,0.00032876,30]
[339013203,1727123446182,-500.0,0.00032876,30]
[339013204,1727123446191,-500.0,0.00032876,30]
[339013205,1727123446201,-500.0,0.00032876,30]
[339013206,1727123446210,-561.18887697,0.00032876,30]
[339013207,1727123446220,-500.0,0.00032876,30]
[339013208,1727123446229,-500.0,0.00032876,30]
[339013209,1727123446239,-261.930871,0.00032876,7]
[339013210,1727123446248,-500.0,0.00032876,30]
[339013211,1727123446258,-151.0,0.00032876,7]
[339013212,1727123446269,-209.681953,0.00032876,7]
[339013213,1727123446279,-151.0,0.00032905,7]
[339013214,1727123446288,-398.764793,0.00032981,14]
[339013215,1727123446298,-398.764793,0.00032981,14]
[339013216,1727123446307,-224.746888,0.00032981,14]
[339013217,1727123446317,-151.0,0.00032981,14]
[339013218,1727123446326,-151.0,0.00032981,14]
[339013219,1727123446336,-198.177705,0.00032981,14]
[339013220,1727123446345,-198.177705,0.00032981,14]
[339013221,1727123446355,-151.0,0.00032981,14]
[339013222,1727123446365,-180.808633,0.00032981,14]
[339013223,1727123446375,-151.0,0.00032981,14]
[339013224,1727123446385,-180.808633,0.00032981,14]
[339013225,1727123446395,-180.303382,0.00032981,14]
[339013226,1727123446404,-151.0,0.00032981,14]
[339013227,1727123446414,-151.0,0.00032981,14]
[339013228,1727123446423,-246.890114,0.00032981,14]
[339013229,1727123446432,-246.890114,0.00032981,14]
[339013230,1727123446442,-1710.817459,0.00032981,14]
[339013231,1727123446451,-151.0,0.00032991,14]
[339013232,1727123446460,-151.0,0.00032991,14]
[339013233,1727123446470,-169.467178,0.00032991,14]
[339013234,1727123446479,-169.467178,0.00032991,14]
[339013235,1727123446488,-151.0,0.00032991,14]
[339013236,1727123446497,-151.0,0.00032991,14]
[339013237,1727123446649,-151.0,0.00032991,14]
[339013238,1727123446659,-173.5811,0.00032991,14]
[339013239,1727123446669,-151.0,0.00032991,14]
[339013240,1727123446678,-151.0,0.00032991,14]
[339013241,1727123446687,-151.0,0.00032991,14]
[339013242,1727123446696,-151.0,0.00032993,14]
[339013243,1727123446706,-593.87699,0.00032993,14]
[339013244,1727123446715,-593.87699,0.00032993,14]
[339013245,1727123446725,-151.0,0.00032993,14]
[339013246,1727123446737,-1130.23931147,0.00032995,2]
[339013247,1727123446746,-150.0,0.00033,2]
[339013248,1727123446756,-151.0,0.00033003,14]
[339013249,1727123446765,-151.0,0.00033003,14]
[339013250,1727123446775,-151.0,0.00033003,14]
[339013251,1727123446787,-289.117315,0.00033003,14]
[339013252,1727123446796,-169.467178,0.00033003,14]
[339013253,1727123446807,-169.467178,0.00033003,14]
[339013254,1727123446818,-151.0,0.00033003,14]
[339013255,1727123446827,-151.0,0.00033003,14]
[339013256,1727123446836,-151.0,0.00033003,14]
[339013257,1727123446845,-151.0,0.00033003,14]
[339013258,1727123446854,-259.924784,0.00033003,14]
[339013259,1727123446863,-151.0,0.00033003,14]
[339013260,1727123446873,-88611.14036414,0.00033011,2]
[339013261,1727123446882,-151.0,0.00033011,14]
[339013262,1727123446891,-286.101278,0.00033011,14]
[339013263,1727123446900,-268.820142,0.00033011,14]
[339013264,1727123446909,-268.820142,0.00033011,14]
[339013265,1727123446919,-247.934056,0.00033011,14]
[339013266,1727123446928,-593.87699,0.00033011,14]
[339013267,1727123446937,-593.87699,0.00033011,14]
[339013268,1727123446947,-151.0,0.00033011,14]
[339013269,1727123446956,-151.0,0.00033011,14]
[339013270,1727123446965,-151.0,0.00033011,14]
[339013271,1727123446974,-151.0,0.00033011,7]
[339013272,1727123446984,-181.107068,0.00033011,14]
[339013273,1727123446993,-181.107068,0.00033011,14]
[339013274,1727123447002,-278.019856,0.00033011,14]
[339013275,1727123447013,-278.019856,0.00033011,14]
[339013276,1727123447022,-1623.471586,0.00033011,14]
[339013277,1727123447031,-1623.471586,0.00033011,14]
[339013278,1727123447040,-151.0,0.00033011,14]
[339013279,1727123447049,-151.0,0.00033011,14]
[339013280,1727123447059,-151.0,0.00033011,14]
[339013281,1727123447067,-500.0,0.00033013,30]
[339013282,1727123447077,-500.0,0.00033013,7]
[339013283,1727123447086,-468.52525314,0.00033013,30]
[339013284,1727123447095,-500.0,0.00033013,30]
[339013285,1727123447104,-353.67249999,0.00033013,30]
[339013286,1727123447114,-500.0,0.00033013,30]
[339013287,1727123447122,-500.0,0.00033013,30]
[339013288,1727123447131,-500.0,0.00033013,30]
[339013289,1727123447141,-704.66,0.00033013,30]
[339013290,1727123447150,-500.0,0.00033013,30]
[339013291,1727123447160,-500.0,0.00033013,30]
[339013292,1727123447169,-500.0,0.00033013,30]
[339013293,1727123447179,-500.0,0.00033013,30]
[339013294,1727123447188,-500.0,0.00033013,30]
[339013295,1727123447198,-500.0,0.00033013,30]
[339013296,1727123447207,-500.0,0.00033013,30]
[339013297,1727123447216,-500.0,0.00033013,30]
[339013298,1727123447225,-1151.88,0.00033013,7]
[339013299,1727123447235,-500.0,0.00033013,30]
[339013300,1727123447244,-500.0,0.00033013,30]
[339013301,1727123447254,-507.84,0.00033013,30]
[339013302,1727123447263,-500.0,0.00033013,30]
[339013303,1727123447272,-409.22594421,0.00033013,30]
[339013304,1727123447281,-500.0,0.00033013,30]
[339013305,1727123447290,-500.0,0.00033013,30]
[339013306,1727123447299,-500.0,0.00033013,2]
[339013307,1727123447309,-594.91,0.00033013,30]
[339013308,1727123447319,-500.0,0.00033013,30]
[339013309,1727123447328,-500.0,0.00033013,30]
[339013310,1727123447338,-712.53,0.00033013,30]
[339013311,1727123447347,-500.0,0.00033013,30]
[339013312,1727123447356,-808.49,0.00033013,30]
[339013313,1727123447366,-500.0,0.00033013,30]
[339013314,1727123447375,-508.13,0.00033013,30]
[339013315,1727123447385,-503.08688599,0.00033013,30]
[339013316,1727123447394,-719.86,0.00033013,30]
[339013317,1727123447403,-500.0,0.00033013,30]
[339013318,1727123447412,-766.83,0.00033013,7]
[339013319,1727123447422,-500.0,0.00033013,30]
[339013320,1727123447431,-500.0,0.00033013,30]
[339013321,1727123447439,-500.0,0.00033013,30]
[339013322,1727123447449,-261.31736027,0.00033013,30]
[339013323,1727123447458,-547.59,0.00033013,30]
[339013324,1727123447467,-500.0,0.00033013,30]
[339013325,1727123447476,-500.0,0.00033013,30]
[339013326,1727123447485,-500.0,0.00033013,30]
[339013327,1727123447494,-500.0,0.00033013,30]
[339013328,1727123447504,-500.0,0.00033013,30]
[339013329,1727123447513,-584.04,0.00033013,30]
[339013330,1727123447523,-673.9,0.00033013,30]
[339013331,1727123447531,-500.0,0.00033013,30]
[339013332,1727123447541,-500.0,0.00033013,30]
[339013333,1727123447550,-594.04,0.00033013,30]
[339013334,1727123447559,-500.0,0.00033013,30]
[339013335,1727123447569,-383.72410219,0.00033013,7]
[339013336,1727123447579,-559.66,0.00033013,30]
[339013337,1727123447588,-500.0,0.00033013,30]
[339013338,1727123447597,-500.0,0.00033013,30]
[339013339,1727123447606,-268.820142,0.00033013,14]
[339013340,1727123447616,-500.0,0.00033013,30]
[339013341,1727123447625,-500.0,0.00033013,30]
[339013342,1727123447635,-500.0,0.00033013,30]
[339013343,1727123447649,-268.820142,0.00033013,14]
[339013344,1727123447662,-500.0,0.00033013,30]
[339013345,1727123447671,-500.0,0.00033013,30]
[339013346,1727123447680,-500.0,0.00033013,30]
[339013347,1727123447689,-516.9,0.00033013,30]
[339013348,1727123447699,-500.0,0.00033013,30]
[339013349,1727123447707,-500.0,0.00033013,30]
[339013350,1727123447717,-500.0,0.00033013,30]
[339013351,1727123447727,-500.0,0.00033013,30]
[339013352,1727123447739,-500.0,0.00033013,30]
[339013353,1727123447748,-500.0,0.00033013,30]
[339013354,1727123447757,-500.0,0.00033013,30]
[339013355,1727123447767,-500.0,0.00033013,30]
[339013356,1727123447777,-500.0,0.00033013,30]
[339013357,1727123447786,-500.0,0.00033013,30]
[339013358,1727123447795,-500.0,0.00033013,30]
[339013359,1727123447805,-500.0,0.00033013,30]
[339013360,1727123447815,-500.0,0.00033013,30]
[339013361,1727123447825,-500.0,0.00033013,30]
[339013362,1727123447834,-500.0,0.00033013,30]
[339013363,1727123447843,-500.0,0.00033013,30]
[339013364,1727123447853,-500.0,0.00033013,30]
[339013365,1727123447862,-500.0,0.00033013,30]
[339013366,1727123447871,-500.0,0.00033013,30]
[339013367,1727123447881,-500.0,0.00033013,30]
[339013368,1727123447894,-583.47,0.00033013,30]
[339013369,1727123447904,-511.44930889,0.00033013,30]
[339013370,1727123447913,-500.0,0.00033013,30]
[339013371,1727123447923,-500.0,0.00033013,30]
[339013372,1727123447932,-500.0,0.00033013,30]
[339013373,1727123447942,-500.0,0.00033013,30]
[339013374,1727123447951,-508.43863048,0.00033013,30]
[339013375,1727123447960,-500.0,0.00033013,30]
[339013376,1727123447970,-500.0,0.00033013,30]
[339013377,1727123447978,-1848.37,0.00033013,30]
[339013378,1727123447988,-509.28277334,0.00033013,30]
[339013379,1727123447997,-500.0,0.00033013,30]
[339013380,1727123448007,-500.0,0.00033013,30]
[339013381,1727123448016,-500.0,0.00033013,30]
[339013382,1727123448025,-500.0,0.00033013,30]
[339013383,1727123448034,-500.0,0.00033013,30]
[339013384,1727123448043,-500.0,0.00033013,30]
[339013385,1727123448053,-670.89,0.00033013,25]
[339013386,1727123448062,-500.0,0.00033013,30]
[339013387,1727123448071,-497.27009121,0.00033013,30]
[339013388,1727123448080,-500.0,0.00033013,30]
[339013389,1727123448090,-500.0,0.00033013,30]
[339013390,1727123448100,-500.0,0.00033013,30]
[339013391,1727123448110,-500.0,0.00033013,30]
[339013392,1727123448120,-500.0,0.00033013,30]
[339013393,1727123448129,-500.0,0.00033013,30]
[339013394,1727123448139,-500.0,0.00033013,30]
[339013395,1727123448148,-500.0,0.00033013,30]
[339013396,1727123448158,-500.0,0.00033013,30]
[339013397,1727123448167,-500.0,0.00033013,30]
[339013398,1727123448176,-500.0,0.00033013,30]
[339013399,1727123448185,-500.0,0.00033013,30]
[339013400,1727123448196,-500.0,0.00033013,30]
[339013401,1727123448205,-500.0,0.00033013,30]
[339013402,1727123448215,-798.03,0.00033013,30]
[339013403,1727123448225,-357.05,0.00033013,30]
[339013404,1727123448234,-500.0,0.00033013,30]
[339013405,1727123448244,-500.0,0.00033013,30]
[339013406,1727123448254,-500.0,0.00033013,30]
[339013407,1727123448263,-2740.63,0.00033013,30]
[339013408,1727123448272,-500.0,0.00033013,30]
[339013409,1727123448282,-455.70222679,0.00033013,30]
[339013410,1727123448291,-500.0,0.00033013,30]
[339013411,1727123448300,-593.87699,0.00033013,14]
[339013412,1727123448310,-500.0,0.00033013,30]
[339013413,1727123448319,-500.0,0.00033013,30]
[339013414,1727123448329,-500.0,0.00033013,120]
[339013415,1727123448339,-593.87699,0.00033013,14]
[339013416,1727123448348,-500.0,0.00033013,30]
[339013417,1727123448357,-500.0,0.00033013,30]
[339013418,1727123448366,-500.0,0.00033013,30]
[339013419,1727123448376,-539.27668004,0.00033013,30]
[339013420,1727123448385,-500.0,0.00033013,30]
[339013421,1727123448394,-500.0,0.00033013,30]
[339013422,1727123448403,-500.0,0.00033013,30]
[339013423,1727123448412,-500.0,0.00033013,30]
[339013424,1727123448421,-500.0,0.00033013,30]
[339013425,1727123448430,-38.81802968,0.00033013,30]
[339013426,1727123448995,-500.0,0.00032876,30]
[339013427,1727123449005,-436.40375,0.00032876,7]
[339013428,1727123449014,-436.40375,0.00032876,7]
[339013429,1727123449024,-151.0,0.00032876,7]
[339013430,1727123449033,-151.0,0.00032876,7]
[339013431,1727123449042,-436.40375,0.00032876,7]
[339013432,1727123449051,-436.40375,0.00032876,7]
[339013433,1727123449060,-151.0,0.00032876,7]
[339013434,1727123449069,-151.0,0.00032876,7]
[339013435,1727123449079,-151.0,0.00032876,7]
[339013436,1727123449088,-336.87526578,0.00033013,30]
[339013437,1727123449098,-500.0,0.00033013,30]
[339013438,1727123449107,-151.0,0.00033013,14]
[339013439,1727123449116,-500.0,0.00033013,30]
[339013440,1727123449126,-500.0,0.00033013,30]
[339013441,1727123449135,-505.22680742,0.00033013,30]
[339013442,1727123449147,-315.30015793,0.00033013,30]
[339013443,1727123449156,-500.0,0.00033013,30]
[339013444,1727123449165,-500.0,0.00033013,2]
[339013445,1727123449175,-500.0,0.00033013,30]
[339013446,1727123449184,-500.0,0.00033013,30]
[339013447,1727123449193,-500.0,0.00033013,30]
[339013448,1727123449202,-500.0,0.00033013,30]
[339013449,1727123449212,-500.0,0.00033013,30]
[339013450,1727123449222,-169.467178,0.00033013,14]
[339013451,1727123449231,-500.0,0.00033013,30]
[339013452,1727123449241,-169.467178,0.00033013,14]
[339013453,1727123449249,-453.48,0.00033013,30]
[339013454,1727123449258,-503.057294,0.00033013,30]
[339013455,1727123449268,-500.0,0.00033013,30]
[339013456,1727123449277,-151.0,0.00033013,14]
[339013457,1727123449286,-500.0,0.00033013,30]
[339013458,1727123449295,-151.0,0.00033013,14]
[339013459,1727123449304,-500.0,0.00033013,30]
[339013460,1727123449313,-500.0,0.00033013,30]
[339013461,1727123449322,-534.72,0.00033013,30]
[339013462,1727123449332,-176.59753781,0.00033013,30]
[339013463,1727123449341,-500.0,0.00033013,30]
[339013464,1727123449350,-500.0,0.00033013,30]
[339013465,1727123449359,-282.11662105,0.00033013,30]
[339013466,1727123449368,-500.0,0.00033013,30]
[339013467,1727123449377,-500.0,0.00033013,30]
[339013468,1727123449386,-500.0,0.00033013,30]
[339013469,1727123449397,-500.0,0.00033013,30]
[339013470,1727123449406,-622.55,0.00033013,30]
[339013471,1727123449416,-500.0,0.00033013,30]
[339013472,1727123449425,-151.0,0.00033013,14]
[339013473,1727123449435,-500.0,0.00033013,30]
[339013474,1727123449445,-500.0,0.00033013,30]
[339013475,1727123449454,-500.0,0.00033013,30]
[339013476,1727123449463,-500.0,0.00033013,30]
[339013477,1727123449472,-500.0,0.00033013,30]
[339013478,1727123449481,-506.36725357,0.00033013,30]
[339013479,1727123449490,-500.0,0.00033013,30]
[339013480,1727123449499,-151.0,0.00033013,14]
[339013481,1727123449508,-151.0,0.00033013,14]
[339013482,1727123449516,-500.0,0.00033013,30]
[339013483,1727123449526,-453.52623953,0.00033013,30]
[339013484,1727123449535,-500.0,0.00033013,30]
[339013485,1727123449544,-1362.23,0.00033013,30]
[339013486,1727123449553,-500.0,0.00033013,30]
[339013487,1727123449562,-500.0,0.00033013,30]
[339013488,1727123449571,-954.72,0.00033013,2]
[339013489,1727123449718,-662.81,0.00033013,30]
[339013490,1727123449729,-175.33546696,0.00033013,30]
[339013496,1727124426155,-301.44167,0.00027397,2]
[339013497,1727124426178,-225.251611,0.00027692,2]
[339013498,1727124426199,-544.49792994,0.00028051,2]
[339013500,1727124449162,-37.23845906,0.00028051,2]
[339013501,1727124449183,-300.0,0.00028354,2]
[339013502,1727124449204,-300.0,0.00028354,2]
[339013503,1727124449225,-1397.15173427,0.00028355,2]
[339013504,1727124453099,-1237.94731814,0.00028355,2]
[339013508,1727124552126,-185.503416,0.00027483,2]
[339013509,1727124552152,-185.503416,0.00027558,2]
[339013510,1727124552173,-185.503416,0.00027634,2]
[339013511,1727124552195,-185.503416,0.00027709,2]
[339013512,1727124552217,-105.11646953,0.00027785,2]
[339013513,1727124553103,-80.38694647,0.00027785,2]
[339013514,1727124553124,-185.503416,0.0002786,2]
[339013515,1727124553148,-185.503416,0.00027935,2]
[339013516,1727124553169,-559.75005746,0.00028,7]
[339013517,1727124553191,-185.503416,0.00028011,2]
[339013518,1727124553212,-6.46949533,0.00028086,2]
[339013570,1727124632515,-300.0,0.00027188,2]
[339013573,1727124632524,-930.76209008,0.00027189,2]
[339013642,1727124640466,-23969.23790992,0.00027189,2]
[339013643,1727124640476,-179.03392067,0.00028086,2]
[339013644,1727124640486,-185.503416,0.00028161,2]
[339013645,1727124640496,-185.503416,0.00028237,2]
[339013646,1727124640505,-185.503416,0.00028312,2]
[339013647,1727124640516,-185.503416,0.00028388,2]
[339013648,1727124640525,-185.503416,0.00028463,2]
[339013649,1727124640535,-185.503416,0.00028538,2]
[339013650,1727124640544,-185.503416,0.00028614,2]
[339013651,1727124640553,-419.04039131,0.00028636,2]
[339013652,1727124640562,-185.503416,0.00028689,2]
[339013653,1727124640572,-500.0,0.00028735,2]
[339013654,1727124640582,-500.0,0.00028735,2]
[339013655,1727124640591,-500.0,0.00028735,2]
[339013656,1727124640600,-185.00897972,0.00028735,2]
[339013657,1727124640609,-500.0,0.00028735,2]
[339013658,1727124640619,-500.0,0.00028735,2]
[339013659,1727124640629,-500.0,0.00028735,2]
[339013660,1727124640639,-500.0,0.00028735,2]
[339013661,1727124640648,-500.0,0.00028735,2]
[339013662,1727124640657,-500.0,0.00028735,2]
[339013663,1727124640666,-500.0,0.00028735,2]
[339013664,1727124640675,-500.0,0.00028735,2]
[339013665,1727124640685,-500.0,0.00028735,2]
[339013666,1727124640694,-500.0,0.00028735,2]
[339013667,1727124640703,-500.0,0.00028735,2]
[339013668,1727124640712,-500.0,0.00028735,2]
[339013669,1727124640721,-500.0,0.00028735,2]
[339013670,1727124640731,-500.0,0.00028735,2]
[339013671,1727124640740,-500.0,0.00028735,2]
[339013672,1727124640750,-500.0,0.00028735,2]
[339013673,1727124640759,-500.0,0.00028735,2]
[339013674,1727124640769,-500.0,0.00028735,2]
[339013675,1727124640778,-500.0,0.00028735,2]
[339013676,1727124640787,-500.0,0.00028735,2]
[339013677,1727124640797,-500.0,0.00028735,2]
[339013678,1727124640988,-500.0,0.00028735,2]
[339013679,1727124640998,-164.93020863,0.00028735,2]
[339013680,1727124641008,-581.736389,0.00028736,2]
[339013681,1727124641018,-185.503416,0.00028764,2]
[339013682,1727124641027,-980.38734467,0.00028814,2]
[339013683,1727124641037,-185.503416,0.0002884,2]
[339013684,1727124641046,-185.503416,0.00028915,2]
[339013685,1727124641055,-420.0,0.00029387,2]
[339013686,1727124641065,-581.736389,0.00029421,2]
[339013687,1727124641075,-500.0,0.00029973,5]
[339013688,1727124641084,-452.88709716,0.00029989,2]
[339013689,1727124641094,-190.86587262,0.00029989,2]
[339013690,1727124641103,-500.0,0.00029989,2]
[339013691,1727124641112,-634.77369094,0.00029989,2]
[339013692,1727124641121,-500.0,0.00029989,2]
[339013693,1727124641131,-500.0,0.00029989,2]
[339013694,1727124641140,-500.0,0.00029989,2]
[339013695,1727124641150,-119997.367188,0.0002999,4]
[339013696,1727124641159,-19116.1469355,0.0002999,4]
[339013697,1727124641169,-179.403,0.00029999,24]
[339013698,1727124641179,-88193.9478466,0.0003,30]
[339013699,1727124641189,-980.38734461,0.00030683,2]
[339013700,1727124641199,-13112.07737984,0.0003082,4]
[339013701,1727124641211,-22803.83621532,0.0003082,4]
[339013715,1727124646564,-11016.12799046,0.0003082,4]
[339013739,1727125575666,-297.898266,0.00027026,2]
[339013740,1727125575689,-286.369586,0.00027397,2]
[339013741,1727125575711,-3000.0,0.00028227,2]
[339013742,1727125575734,-300.0,0.00028827,2]
[339013743,1727125575757,-300.0,0.00028827,2]
[339013744,1727125575781,-24900.0,0.00028828,2]
[339013745,1727125575805,-157.36072,0.00029052,2]
[339013746,1727125575828,-157.36072,0.00029431,2]
[339013747,1727125575851,-157.36072,0.00029809,2]
[339013748,1727125575874,-755.66287347,0.000299,2]
[339013749,1727125575896,-500.0,0.00029989,2]
[339013750,1727125575921,-151.0,0.0003,120]
[339013751,1727125620874,287.460482,0.00027397,2]
[339013752,1727125626294,-157.36072,0.00030188,2]
[339013753,1727125626316,-150.19125691,0.00030275,2]
[339013754,1727125626338,-400.0,0.0003048,2]
[339013755,1727125626361,-400.0,0.0003048,2]
[339013756,1727125626383,-6844.415778,0.00030481,2]
[339013757,1727125626404,-157.36072,0.00030566,2]
[339013758,1727125626425,-297.04262969,0.00030775,2]
[339013759,1727125626447,-179.403,0.00030862,27]
[339013760,1727125626470,-500.0,0.00030874,2]
[339013761,1727125626490,-500.0,0.00030874,2]